[Event "Titled Tuesday Blitz April 4 Early 2023"]
[White "Skliarov, Viktor"]
[Black "Kubatko, Ivan"]
[WhiteFideId "14106736"]
[BlackFideId "24111473"]
[WhiteElo "2317"]
[BlackElo "2285"]
[Result "1-0"]
[Round "04"]
[TimeControl "180+2"]
[Date "2023.04.04"]
[WhiteClock "0:00:08"]
[BlackClock "0:00:03"]

1. e4 {[%clk 0:03:00]}  d5 {[%clk 0:02:59]} 2. exd5 {[%clk 0:03:00]}  Qxd5 {[%clk 0:02:57]} 3. Nc3 {[%clk 0:03:01]}  Qa5 {[%clk 0:02:57]} 4. d4 {[%clk 0:03:01]}  Nf6 {[%clk 0:02:57]} 5. Bc4 {[%clk 0:03:02]}  Bg4 {[%clk 0:02:56]} 6. f3 {[%clk 0:03:01]}  Bh5 {[%clk 0:02:55]} 7. Ne2 {[%clk 0:03:01]}  Nc6 {[%clk 0:02:41]} 8. Bd2 {[%clk 0:02:52]}  O-O-O {[%clk 0:02:36]} 9. Nd5 {[%clk 0:02:47]}  Qa4 {[%clk 0:02:31]} 10. b3 {[%clk 0:02:37]}  Qa3 {[%clk 0:02:31]} 11. Nxf6 {[%clk 0:02:11]}  exf6 {[%clk 0:02:23]} 12. c3 {[%clk 0:02:05]}  Na5 {[%clk 0:02:04]} 13. O-O {[%clk 0:01:54]}  Nxc4 {[%clk 0:01:57]} 14. bxc4 {[%clk 0:01:55]}  Bg6 {[%clk 0:01:30]} 15. Nf4 {[%clk 0:01:53]}  Bd6 {[%clk 0:01:30]} 16. Qb3 {[%clk 0:01:34]}  Qa6 {[%clk 0:01:01]} 17. Nxg6 {[%clk 0:01:31]}  hxg6 {[%clk 0:01:01]} 18. h3 {[%clk 0:01:32]}  f5 {[%clk 0:00:36]} 19. a4 {[%clk 0:01:30]}  Rhe8 {[%clk 0:00:33]} 20. Qb5 {[%clk 0:01:20]}  Re2 {[%clk 0:00:27]} 21. Rf2 {[%clk 0:01:10]}  Rde8 {[%clk 0:00:24]} 22. Kf1 {[%clk 0:00:59]}  Rxf2+ {[%clk 0:00:22]} 23. Kxf2 {[%clk 0:00:59]}  Qc6 {[%clk 0:00:17]} 24. Qxc6 {[%clk 0:00:35]}  bxc6 {[%clk 0:00:18]} 25. c5 {[%clk 0:00:36]}  Be7 {[%clk 0:00:16]} 26. Rb1 {[%clk 0:00:36]}  a6 {[%clk 0:00:14]} 27. Rb2 {[%clk 0:00:21]}  Bf6 {[%clk 0:00:13]} 28. Be3 {[%clk 0:00:19]}  g5 {[%clk 0:00:12]} 29. g4 {[%clk 0:00:18]}  f4 {[%clk 0:00:09]} 30. Bc1 {[%clk 0:00:18]}  g6 {[%clk 0:00:07]} 31. Re2 {[%clk 0:00:15]}  Rxe2+ {[%clk 0:00:07]} 32. Kxe2 {[%clk 0:00:16]}  Kd7 {[%clk 0:00:08]} 33. Kd3 {[%clk 0:00:16]}  Ke6 {[%clk 0:00:08]} 34. c4 {[%clk 0:00:12]}  Be7 {[%clk 0:00:07]} 35. Bd2 {[%clk 0:00:12]}  f5 {[%clk 0:00:07]} 36. Ba5 {[%clk 0:00:12]}  Bd8 {[%clk 0:00:07]} 37. Bb4 {[%clk 0:00:10]}  Be7 {[%clk 0:00:07]} 38. Bc3 {[%clk 0:00:10]}  Bd8 {[%clk 0:00:06]} 39. Ba5 {[%clk 0:00:10]}  Kf6 {[%clk 0:00:04]} 40. d5 {[%clk 0:00:10]}  cxd5 {[%clk 0:00:03]} 41. cxd5 {[%clk 0:00:10]}  Ke5 {[%clk 0:00:04]} 42. Kc4 {[%clk 0:00:10]}  fxg4 {[%clk 0:00:02]} 43. hxg4 {[%clk 0:00:10]}  Kf6 {[%clk 0:00:02]} 44. d6 {[%clk 0:00:08]}  cxd6 {[%clk 0:00:02]} 45. Bxd8+ {[%clk 0:00:08]}  Ke6 {[%clk 0:00:03]} 46. cxd6 {[%clk 0:00:08]}  Kxd6 {[%clk 0:00:03]} 47. Bxg5 {[%clk 0:00:08]} 1-0


[Site "https://www.chess.com"]

[Event "Titled Tuesday Blitz April 4 Early 2023"]
[White "Al-Tarboush, Ward"]
[Black "lluiss"]
[WhiteFideId "7601450"]
[WhiteElo "2265"]
[BlackElo "2229"]
[Result "1-0"]
[Round "04"]
[TimeControl "180+2"]
[Date "2023.04.04"]
[WhiteClock "0:00:18"]
[BlackClock "0:00:01"]

1. e4 {[%clk 0:03:00]}  c5 {[%clk 0:02:58]} 2. Nf3 {[%clk 0:03:01]}  d6 {[%clk 0:02:58]} 3. d4 {[%clk 0:03:01]}  cxd4 {[%clk 0:02:59]} 4. Nxd4 {[%clk 0:03:02]}  Nf6 {[%clk 0:02:58]} 5. Nc3 {[%clk 0:03:03]}  g6 {[%clk 0:02:59]} 6. Be2 {[%clk 0:03:03]}  Bg7 {[%clk 0:02:59]} 7. O-O {[%clk 0:03:03]}  O-O {[%clk 0:02:59]} 8. Be3 {[%clk 0:03:03]}  d5 {[%clk 0:02:53]} 9. e5 {[%clk 0:02:41]}  Ne8 {[%clk 0:02:53]} 10. f4 {[%clk 0:02:28]}  e6 {[%clk 0:02:53]} 11. g4 {[%clk 0:02:05]}  Nc6 {[%clk 0:02:50]} 12. g5 {[%clk 0:02:03]}  Nc7 {[%clk 0:02:36]} 13. h4 {[%clk 0:02:02]}  h6 {[%clk 0:02:05]} 14. Kg2 {[%clk 0:01:58]}  hxg5 {[%clk 0:02:04]} 15. hxg5 {[%clk 0:01:59]}  Bd7 {[%clk 0:01:40]} 16. Rh1 {[%clk 0:01:57]}  Re8 {[%clk 0:01:37]} 17. Qe1 {[%clk 0:01:53]}  b6 {[%clk 0:01:15]} 18. Qh4 {[%clk 0:01:51]}  Nxd4 {[%clk 0:01:09]} 19. Bxd4 {[%clk 0:01:52]}  Bc8 {[%clk 0:01:08]} 20. Bd3 {[%clk 0:01:46]}  Ba6 {[%clk 0:01:07]} 21. Qh7+ {[%clk 0:01:45]}  Kf8 {[%clk 0:01:06]} 22. Bxg6 {[%clk 0:01:17]}  fxg6 {[%clk 0:01:05]} 23. Qxg6 {[%clk 0:01:18]}  Qe7 {[%clk 0:00:50]} 24. f5 {[%clk 0:01:12]}  Qf7 {[%clk 0:00:45]} 25. Qxf7+ {[%clk 0:01:09]}  Kxf7 {[%clk 0:00:45]} 26. g6+ {[%clk 0:01:05]}  Kg8 {[%clk 0:00:39]} 27. f6 {[%clk 0:01:06]}  Rf8 {[%clk 0:00:05]} 28. Rh7 {[%clk 0:00:52]}  Ne8 {[%clk 0:00:01]} 29. Rah1 {[%clk 0:00:38]}  Bxf6 {[%clk 0:00:01]} 30. exf6 {[%clk 0:00:34]}  Nxf6 {[%clk 0:00:01]} 31. Bxf6 {[%clk 0:00:18]} 1-0


[Site "https://www.chess.com"]

[Event "Titled Tuesday Blitz April 4 Early 2023"]
[White "Ozates, Tuna"]
[Black "Semenova, Alina"]
[WhiteFideId "6354521"]
[BlackFideId "24113875"]
[WhiteElo "2151"]
[BlackElo "1833"]
[Result "1-0"]
[Round "04"]
[TimeControl "180+2"]
[Date "2023.04.04"]
[WhiteClock "0:01:12"]
[BlackClock "0:00:02"]

1. d4 {[%clk 0:03:00]}  Nf6 {[%clk 0:02:58]} 2. Bg5 {[%clk 0:02:59]}  d6 {[%clk 0:02:58]} 3. Bxf6 {[%clk 0:02:54]}  gxf6 {[%clk 0:02:57]} 4. g3 {[%clk 0:02:43]}  e5 {[%clk 0:02:55]} 5. Bg2 {[%clk 0:02:40]}  c6 {[%clk 0:02:53]} 6. e3 {[%clk 0:02:41]}  Qb6 {[%clk 0:02:52]} 7. Nc3 {[%clk 0:02:36]}  Qxb2 {[%clk 0:02:31]} 8. Nge2 {[%clk 0:02:35]}  Nd7 {[%clk 0:02:24]} 9. O-O {[%clk 0:02:28]}  Qb6 {[%clk 0:02:15]} 10. d5 {[%clk 0:02:26]}  Nc5 {[%clk 0:01:56]} 11. a4 {[%clk 0:02:22]}  a5 {[%clk 0:01:55]} 12. Rb1 {[%clk 0:02:21]}  Qc7 {[%clk 0:01:54]} 13. f4 {[%clk 0:02:10]}  Bh6 {[%clk 0:01:44]} 14. Kh1 {[%clk 0:02:06]}  Rg8 {[%clk 0:01:02]} 15. dxc6 {[%clk 0:01:52]}  bxc6 {[%clk 0:00:58]} 16. Nb5 {[%clk 0:01:52]}  cxb5 {[%clk 0:00:50]} 17. Bxa8 {[%clk 0:01:53]}  Bb7+ {[%clk 0:00:50]} 18. Bxb7 {[%clk 0:01:54]}  Qxb7+ {[%clk 0:00:51]} 19. Kg1 {[%clk 0:01:53]}  b4 {[%clk 0:00:35]} 20. Qxd6 {[%clk 0:01:52]}  Ne4 {[%clk 0:00:28]} 21. Qd3 {[%clk 0:01:52]}  Ke7 {[%clk 0:00:20]} 22. Rbd1 {[%clk 0:01:38]}  f5 {[%clk 0:00:16]} 23. fxe5 {[%clk 0:01:33]}  Rg5 {[%clk 0:00:08]} 24. Nf4 {[%clk 0:01:31]}  Rg8 {[%clk 0:00:03]} 25. Nd5+ {[%clk 0:01:26]}  Ke6 {[%clk 0:00:03]} 26. Qb3 {[%clk 0:01:19]}  Kxe5 {[%clk 0:00:02]} 27. Qb2+ {[%clk 0:01:13]}  Ke6 {[%clk 0:00:01]} 28. Nf4+ {[%clk 0:01:12]}  Bxf4 {[%clk 0:00:02]} 29. exf4 {[%clk 0:01:12]} 1-0


[Site "https://www.chess.com"]

[Event "Titled Tuesday Blitz April 4 Early 2023"]
[White "Kosteniuk, Alexandra"]
[Black "Bruedigam, Martin"]
[WhiteFideId "4128125"]
[BlackFideId "24608033"]
[WhiteElo "2453"]
[BlackElo "2331"]
[Result "1-0"]
[Round "04"]
[TimeControl "180+2"]
[Date "2023.04.04"]
[WhiteClock "0:01:13"]
[BlackClock "0:00:27"]

1. d4 {[%clk 0:03:00]}  Nf6 {[%clk 0:02:57]} 2. Nf3 {[%clk 0:03:00]}  d5 {[%clk 0:02:56]} 3. g3 {[%clk 0:03:00]}  Bf5 {[%clk 0:02:54]} 4. Bg2 {[%clk 0:03:00]}  e6 {[%clk 0:02:54]} 5. O-O {[%clk 0:03:00]}  c6 {[%clk 0:02:54]} 6. b3 {[%clk 0:03:00]}  h6 {[%clk 0:02:54]} 7. c4 {[%clk 0:03:00]}  Nbd7 {[%clk 0:02:54]} 8. Bb2 {[%clk 0:03:00]}  Be7 {[%clk 0:02:54]} 9. Nc3 {[%clk 0:03:00]}  O-O {[%clk 0:02:54]} 10. Ne5 {[%clk 0:02:59]}  Bh7 {[%clk 0:02:50]} 11. f4 {[%clk 0:02:55]}  Rc8 {[%clk 0:02:48]} 12. e3 {[%clk 0:02:52]}  Qc7 {[%clk 0:02:46]} 13. g4 {[%clk 0:02:52]}  Nxe5 {[%clk 0:02:14]} 14. dxe5 {[%clk 0:02:52]}  Nd7 {[%clk 0:02:14]} 15. e4 {[%clk 0:02:25]}  Rfd8 {[%clk 0:02:01]} 16. exd5 {[%clk 0:02:18]}  cxd5 {[%clk 0:02:00]} 17. cxd5 {[%clk 0:02:17]}  Bc5+ {[%clk 0:01:39]} 18. Kh1 {[%clk 0:02:17]}  exd5 {[%clk 0:01:39]} 19. Nxd5 {[%clk 0:02:16]}  Qa5 {[%clk 0:01:34]} 20. Bc3 {[%clk 0:02:01]}  Qa6 {[%clk 0:01:31]} 21. Qe1 {[%clk 0:01:54]}  Nb6 {[%clk 0:01:24]} 22. Nxb6 {[%clk 0:01:40]}  axb6 {[%clk 0:01:17]} 23. e6 {[%clk 0:01:34]}  Re8 {[%clk 0:00:43]} 24. exf7+ {[%clk 0:01:25]}  Kxf7 {[%clk 0:00:44]} 25. Bd5+ {[%clk 0:01:23]}  Kf8 {[%clk 0:00:44]} 26. Bxg7+ {[%clk 0:01:19]}  Kxg7 {[%clk 0:00:38]} 27. Qc3+ {[%clk 0:01:19]}  Kg6 {[%clk 0:00:30]} 28. f5+ {[%clk 0:01:15]}  Kg5 {[%clk 0:00:27]} 29. Qg7+ {[%clk 0:01:13]} 1-0


[Site "https://www.chess.com"]

[Event "Titled Tuesday Blitz April 4 Early 2023"]
[White "Bodnaruk, Anastasia"]
[Black "Novikov, Evgenij"]
[WhiteFideId "4181751"]
[BlackFideId "4125380"]
[WhiteElo "2310"]
[BlackElo "2242"]
[Result "1/2-1/2"]
[Round "04"]
[TimeControl "180+2"]
[Date "2023.04.04"]
[WhiteClock "0:00:04"]
[BlackClock "0:00:04"]

1. e4 {[%clk 0:03:00]}  c5 {[%clk 0:02:57]} 2. Nc3 {[%clk 0:02:59]}  Nc6 {[%clk 0:02:56]} 3. Bb5 {[%clk 0:02:59]}  e5 {[%clk 0:02:55]} 4. Nge2 {[%clk 0:02:54]}  d6 {[%clk 0:02:44]} 5. O-O {[%clk 0:02:48]}  Nf6 {[%clk 0:02:36]} 6. d3 {[%clk 0:02:44]}  Bg4 {[%clk 0:02:31]} 7. a4 {[%clk 0:02:38]}  Be7 {[%clk 0:02:30]} 8. f3 {[%clk 0:02:35]}  Bh5 {[%clk 0:02:26]} 9. g4 {[%clk 0:02:30]}  Bg6 {[%clk 0:02:25]} 10. h4 {[%clk 0:02:29]}  h5 {[%clk 0:02:14]} 11. g5 {[%clk 0:02:29]}  Nd7 {[%clk 0:02:12]} 12. Nd5 {[%clk 0:02:26]}  O-O {[%clk 0:02:09]} 13. f4 {[%clk 0:02:13]}  exf4 {[%clk 0:02:09]} 14. Nexf4 {[%clk 0:02:13]}  Nde5 {[%clk 0:02:03]} 15. Nxh5 {[%clk 0:02:08]}  a6 {[%clk 0:01:51]} 16. Bxc6 {[%clk 0:01:57]}  bxc6 {[%clk 0:01:52]} 17. Nxe7+ {[%clk 0:01:52]}  Qxe7 {[%clk 0:01:53]} 18. Ng3 {[%clk 0:01:48]}  Qe6 {[%clk 0:01:31]} 19. Nf5 {[%clk 0:01:41]}  Rfe8 {[%clk 0:01:11]} 20. Be3 {[%clk 0:01:15]}  c4 {[%clk 0:01:05]} 21. Bd4 {[%clk 0:00:56]}  cxd3 {[%clk 0:01:02]} 22. cxd3 {[%clk 0:00:56]}  d5 {[%clk 0:00:55]} 23. Qc2 {[%clk 0:00:36]}  dxe4 {[%clk 0:00:48]} 24. dxe4 {[%clk 0:00:36]}  Rad8 {[%clk 0:00:45]} 25. Rad1 {[%clk 0:00:34]}  Ng4 {[%clk 0:00:35]} 26. Nxg7 {[%clk 0:00:27]}  Qxe4 {[%clk 0:00:28]} 27. Qxe4 {[%clk 0:00:26]}  Rxe4 {[%clk 0:00:29]} 28. Bc3 {[%clk 0:00:24]}  Rd5 {[%clk 0:00:21]} 29. h5 {[%clk 0:00:17]}  Ne3 {[%clk 0:00:16]} 30. Rxd5 {[%clk 0:00:15]}  cxd5 {[%clk 0:00:16]} 31. hxg6 {[%clk 0:00:14]}  Nxf1 {[%clk 0:00:15]} 32. Kxf1 {[%clk 0:00:10]}  d4 {[%clk 0:00:11]} 33. Nh5 {[%clk 0:00:10]}  dxc3 {[%clk 0:00:03]} 34. bxc3 {[%clk 0:00:04]}  Rxa4 {[%clk 0:00:02]} 35. gxf7+ {[%clk 0:00:03]}  Kxf7 {[%clk 0:00:03]} 36. Nf6 {[%clk 0:00:02]}  Rf4+ {[%clk 0:00:02]} 37. Ke2 {[%clk 0:00:02]}  Rf5 {[%clk 0:00:03]} 38. Ne4 {[%clk 0:00:02]}  Re5 {[%clk 0:00:03]} 39. Kd3 {[%clk 0:00:03]}  Ke6 {[%clk 0:00:03]} 40. Kd4 {[%clk 0:00:02]}  Rd5+ {[%clk 0:00:03]} 41. Kc4 {[%clk 0:00:02]}  Re5 {[%clk 0:00:03]} 42. Kd4 {[%clk 0:00:03]}  Rd5+ {[%clk 0:00:03]} 43. Kc4 {[%clk 0:00:03]}  Re5 {[%clk 0:00:04]} 44. Kd4 {[%clk 0:00:04]} 1/2-1/2


[Site "https://www.chess.com"]

[Event "Titled Tuesday Blitz April 4 Early 2023"]
[White "UNSTOPPABLE_LEGEND"]
[Black "Sadykov, Ramil"]
[BlackFideId "24113590"]
[WhiteElo "2497"]
[BlackElo "2245"]
[Result "1-0"]
[Round "04"]
[TimeControl "180+2"]
[Date "2023.04.04"]
[WhiteClock "0:02:14"]
[BlackClock "0:00:28"]

1. e3 {[%clk 0:03:00]}  d5 {[%clk 0:02:41]} 2. d3 {[%clk 0:03:01]}  c5 {[%clk 0:02:27]} 3. c3 {[%clk 0:03:02]}  Nc6 {[%clk 0:02:27]} 4. f3 {[%clk 0:03:02]}  e5 {[%clk 0:02:27]} 5. g3 {[%clk 0:03:02]}  f5 {[%clk 0:02:27]} 6. b3 {[%clk 0:03:02]}  Nf6 {[%clk 0:02:28]} 7. a3 {[%clk 0:03:02]}  Be6 {[%clk 0:02:28]} 8. h3 {[%clk 0:03:03]}  Bd6 {[%clk 0:02:28]} 9. Bg2 {[%clk 0:03:03]}  e4 {[%clk 0:02:26]} 10. f4 {[%clk 0:03:03]}  exd3 {[%clk 0:02:26]} 11. Qxd3 {[%clk 0:03:03]}  Ne4 {[%clk 0:02:26]} 12. Ne2 {[%clk 0:03:02]}  O-O {[%clk 0:02:23]} 13. Nd2 {[%clk 0:03:02]}  Qe7 {[%clk 0:02:16]} 14. Bb2 {[%clk 0:03:01]}  Rad8 {[%clk 0:02:16]} 15. Nxe4 {[%clk 0:02:59]}  dxe4 {[%clk 0:02:11]} 16. Qc2 {[%clk 0:02:59]}  c4 {[%clk 0:02:07]} 17. b4 {[%clk 0:02:59]}  Qc7 {[%clk 0:01:59]} 18. O-O-O {[%clk 0:02:57]}  Ne7 {[%clk 0:01:46]} 19. Nd4 {[%clk 0:02:57]}  Bd7 {[%clk 0:01:44]} 20. g4 {[%clk 0:02:51]}  Nd5 {[%clk 0:01:39]} 21. Rhe1 {[%clk 0:02:49]}  Nxe3 {[%clk 0:01:36]} 22. Rxe3 {[%clk 0:02:48]}  Bxf4 {[%clk 0:01:36]} 23. Re1 {[%clk 0:02:47]}  fxg4 {[%clk 0:01:28]} 24. hxg4 {[%clk 0:02:46]}  Bxg4 {[%clk 0:01:29]} 25. Bxe4 {[%clk 0:02:46]}  h6 {[%clk 0:01:24]} 26. Kb1 {[%clk 0:02:44]}  Bxe3 {[%clk 0:01:24]} 27. Rxe3 {[%clk 0:02:45]}  Rf1+ {[%clk 0:01:20]} 28. Ka2 {[%clk 0:02:44]}  Rdf8 {[%clk 0:01:20]} 29. Bd5+ {[%clk 0:02:41]}  Kh8 {[%clk 0:01:19]} 30. Nb5 {[%clk 0:02:36]}  Qb6 {[%clk 0:01:09]} 31. Nd4 {[%clk 0:02:32]}  R1f2 {[%clk 0:00:59]} 32. Qc1 {[%clk 0:02:30]}  Qc7 {[%clk 0:00:55]} 33. Ne6 {[%clk 0:02:25]}  Bxe6 {[%clk 0:00:52]} 34. Rxe6 {[%clk 0:02:26]}  b5 {[%clk 0:00:48]} 35. a4 {[%clk 0:02:22]}  bxa4 {[%clk 0:00:46]} 36. Ka3 {[%clk 0:02:22]}  a5 {[%clk 0:00:41]} 37. Qe3 {[%clk 0:02:19]}  axb4+ {[%clk 0:00:40]} 38. cxb4 {[%clk 0:02:19]}  c3 {[%clk 0:00:35]} 39. Bxc3 {[%clk 0:02:19]}  Qf4 {[%clk 0:00:28]} 40. Rxh6+ {[%clk 0:02:14]} 1-0


[Site "https://www.chess.com"]

[Event "Titled Tuesday Blitz April 4 Early 2023"]
[White "Jakubowski, Krzysztof"]
[Black "WindWhistler11"]
[WhiteFideId "1112848"]
[WhiteElo "2359"]
[BlackElo "2474"]
[Result "1-0"]
[Round "04"]
[TimeControl "180+2"]
[Date "2023.04.04"]
[WhiteClock "0:00:10"]
[BlackClock "0:00:01"]

1. e4 {[%clk 0:03:00]}  e6 {[%clk 0:02:57]} 2. d3 {[%clk 0:02:59]}  d5 {[%clk 0:02:57]} 3. Nd2 {[%clk 0:02:58]}  Nf6 {[%clk 0:02:57]} 4. Ngf3 {[%clk 0:02:58]}  c5 {[%clk 0:02:57]} 5. g3 {[%clk 0:02:57]}  Nc6 {[%clk 0:02:57]} 6. Bg2 {[%clk 0:02:57]}  g6 {[%clk 0:02:58]} 7. O-O {[%clk 0:02:57]}  Bg7 {[%clk 0:02:58]} 8. Re1 {[%clk 0:02:56]}  O-O {[%clk 0:02:58]} 9. a4 {[%clk 0:02:51]}  Re8 {[%clk 0:02:51]} 10. c3 {[%clk 0:02:47]}  b6 {[%clk 0:02:50]} 11. e5 {[%clk 0:02:45]}  Nd7 {[%clk 0:02:49]} 12. d4 {[%clk 0:02:45]}  cxd4 {[%clk 0:02:49]} 13. cxd4 {[%clk 0:02:44]}  Ba6 {[%clk 0:02:48]} 14. Nf1 {[%clk 0:02:42]}  Rc8 {[%clk 0:02:36]} 15. Bd2 {[%clk 0:02:40]}  Bd3 {[%clk 0:02:25]} 16. Ne3 {[%clk 0:02:34]}  Be4 {[%clk 0:02:18]} 17. Bc3 {[%clk 0:02:33]}  Qe7 {[%clk 0:02:09]} 18. Bf1 {[%clk 0:02:18]}  f6 {[%clk 0:01:53]} 19. exf6 {[%clk 0:02:12]}  Qxf6 {[%clk 0:01:43]} 20. Nd2 {[%clk 0:01:40]}  Rf8 {[%clk 0:00:54]} 21. Ng4 {[%clk 0:01:10]}  Qf5 {[%clk 0:00:47]} 22. Bh3 {[%clk 0:00:57]}  Kh8 {[%clk 0:00:37]} 23. f4 {[%clk 0:00:28]}  Qh5 {[%clk 0:00:24]} 24. Nxe4 {[%clk 0:00:20]}  dxe4 {[%clk 0:00:23]} 25. Nf2 {[%clk 0:00:18]}  Nf6 {[%clk 0:00:03]} 26. Qxh5 {[%clk 0:00:13]}  gxh5 {[%clk 0:00:03]} 27. Bxe6 {[%clk 0:00:13]}  Rce8 {[%clk 0:00:02]} 28. d5 {[%clk 0:00:13]}  Na5 {[%clk 0:00:01]} 29. Nxe4 {[%clk 0:00:10]} 1-0


[Site "https://www.chess.com"]

[Event "Titled Tuesday Blitz April 4 Early 2023"]
[White "Munoz, Francisco Javier"]
[Black "Santos Flores, Alberto"]
[WhiteFideId "128368"]
[BlackFideId "3601234"]
[WhiteElo "2383"]
[BlackElo "2235"]
[Result "0-1"]
[Round "04"]
[TimeControl "180+2"]
[Date "2023.04.04"]
[WhiteClock "0:00:14"]
[BlackClock "0:00:49"]

1. e4 {[%clk 0:03:00]}  c5 {[%clk 0:03:00]} 2. Nc3 {[%clk 0:03:01]}  Nc6 {[%clk 0:03:00]} 3. f4 {[%clk 0:03:00]}  g6 {[%clk 0:03:00]} 4. Nf3 {[%clk 0:03:01]}  Bg7 {[%clk 0:03:00]} 5. Bb5 {[%clk 0:03:01]}  Nd4 {[%clk 0:03:00]} 6. Nxd4 {[%clk 0:03:01]}  cxd4 {[%clk 0:03:00]} 7. Ne2 {[%clk 0:03:02]}  e6 {[%clk 0:03:00]} 8. O-O {[%clk 0:03:01]}  Ne7 {[%clk 0:03:00]} 9. d3 {[%clk 0:03:01]}  O-O {[%clk 0:02:58]} 10. Ba4 {[%clk 0:03:01]}  d6 {[%clk 0:02:50]} 11. Bb3 {[%clk 0:03:01]}  b5 {[%clk 0:02:48]} 12. a4 {[%clk 0:03:01]}  Bd7 {[%clk 0:02:43]} 13. axb5 {[%clk 0:02:57]}  Bxb5 {[%clk 0:02:44]} 14. f5 {[%clk 0:02:51]}  exf5 {[%clk 0:02:41]} 15. exf5 {[%clk 0:02:51]}  Nxf5 {[%clk 0:02:40]} 16. Rxf5 {[%clk 0:02:51]}  gxf5 {[%clk 0:02:40]} 17. Nf4 {[%clk 0:02:48]}  Qh4 {[%clk 0:02:24]} 18. Bd2 {[%clk 0:02:46]}  Bc6 {[%clk 0:02:22]} 19. Ra5 {[%clk 0:01:54]}  Be5 {[%clk 0:02:12]} 20. Qf1 {[%clk 0:01:45]}  Kh8 {[%clk 0:02:02]} 21. g3 {[%clk 0:01:41]}  Qg4 {[%clk 0:02:02]} 22. Bd5 {[%clk 0:01:14]}  Bxd5 {[%clk 0:01:55]} 23. Nxd5 {[%clk 0:01:14]}  h5 {[%clk 0:01:49]} 24. Bf4 {[%clk 0:01:13]}  h4 {[%clk 0:01:47]} 25. Bxe5+ {[%clk 0:00:31]}  dxe5 {[%clk 0:01:47]} 26. Nf6 {[%clk 0:00:31]}  Qg5 {[%clk 0:01:38]} 27. Nd7 {[%clk 0:00:18]}  hxg3 {[%clk 0:01:35]} 28. Nxe5 {[%clk 0:00:18]}  gxh2+ {[%clk 0:01:33]} 29. Kh1 {[%clk 0:00:18]}  Qg1+ {[%clk 0:01:30]} 30. Qxg1 {[%clk 0:00:18]}  hxg1=Q+ {[%clk 0:01:31]} 31. Kxg1 {[%clk 0:00:19]}  Kg7 {[%clk 0:01:23]} 32. Nc4 {[%clk 0:00:19]}  Rfe8 {[%clk 0:01:08]} 33. Rxf5 {[%clk 0:00:17]}  Re2 {[%clk 0:01:08]} 34. Na3 {[%clk 0:00:17]}  Rb8 {[%clk 0:01:05]} 35. b3 {[%clk 0:00:16]}  Rb6 {[%clk 0:00:59]} 36. Rf4 {[%clk 0:00:16]}  Ra6 {[%clk 0:00:51]} 37. Rg4+ {[%clk 0:00:14]}  Kf8 {[%clk 0:00:49]} 0-1


[Site "https://www.chess.com"]

[Event "Titled Tuesday Blitz April 4 Early 2023"]
[White "Lewicki, Miroslaw"]
[Black "Shvedova, Alexandra"]
[WhiteFideId "1113380"]
[BlackFideId "54154782"]
[WhiteElo "2212"]
[BlackElo "2057"]
[Result "0-1"]
[Round "04"]
[TimeControl "180+2"]
[Date "2023.04.04"]
[WhiteClock "0:00:01"]
[BlackClock "0:00:05"]

1. f3 {[%clk 0:02:56]}  d5 {[%clk 0:02:57]} 2. Kf2 {[%clk 0:02:57]}  e5 {[%clk 0:02:55]} 3. g3 {[%clk 0:02:57]}  Nf6 {[%clk 0:02:54]} 4. Kg2 {[%clk 0:02:57]}  b6 {[%clk 0:02:52]} 5. d3 {[%clk 0:02:57]}  Bb7 {[%clk 0:02:52]} 6. b3 {[%clk 0:02:55]}  d4 {[%clk 0:02:48]} 7. Bb2 {[%clk 0:02:55]}  Nbd7 {[%clk 0:02:47]} 8. c4 {[%clk 0:02:43]}  Ng4 {[%clk 0:02:44]} 9. Bc1 {[%clk 0:02:43]}  h5 {[%clk 0:02:39]} 10. h3 {[%clk 0:02:42]}  Ne3+ {[%clk 0:02:28]} 11. Bxe3 {[%clk 0:02:41]}  dxe3 {[%clk 0:02:29]} 12. Nc3 {[%clk 0:02:38]}  h4 {[%clk 0:02:27]} 13. g4 {[%clk 0:02:31]}  Qf6 {[%clk 0:02:24]} 14. Rh2 {[%clk 0:02:23]}  Qf4 {[%clk 0:02:04]} 15. Kh1 {[%clk 0:02:16]}  Nf6 {[%clk 0:02:00]} 16. b4 {[%clk 0:02:13]}  Bd6 {[%clk 0:01:50]} 17. a3 {[%clk 0:02:03]}  e4 {[%clk 0:01:36]} 18. Rg2 {[%clk 0:02:02]}  exd3 {[%clk 0:01:19]} 19. exd3 {[%clk 0:02:01]}  O-O-O {[%clk 0:01:06]} 20. Nce2 {[%clk 0:01:28]}  Qg5 {[%clk 0:01:00]} 21. Qa4 {[%clk 0:01:24]}  a6 {[%clk 0:00:57]} 22. Rc1 {[%clk 0:01:24]}  Nd7 {[%clk 0:00:47]} 23. d4 {[%clk 0:01:19]}  c5 {[%clk 0:00:37]} 24. bxc5 {[%clk 0:01:16]}  bxc5 {[%clk 0:00:38]} 25. d5 {[%clk 0:01:17]}  Qg6 {[%clk 0:00:32]} 26. f4 {[%clk 0:01:13]}  Qe4 {[%clk 0:00:29]} 27. Nc3 {[%clk 0:00:51]}  Qxf4 {[%clk 0:00:28]} 28. Rb1 {[%clk 0:00:50]}  Bc7 {[%clk 0:00:25]} 29. Bd3 {[%clk 0:00:36]}  Nb6 {[%clk 0:00:25]} 30. Qa5 {[%clk 0:00:29]}  Nxd5 {[%clk 0:00:21]} 31. Bf5+ {[%clk 0:00:15]}  Qxf5 {[%clk 0:00:20]} 32. gxf5 {[%clk 0:00:14]}  Bxa5 {[%clk 0:00:20]} 33. Nxd5 {[%clk 0:00:14]}  Rxd5 {[%clk 0:00:20]} 34. Rxb7 {[%clk 0:00:09]}  Rxf5 {[%clk 0:00:19]} 35. Ra7 {[%clk 0:00:04]}  Rh6 {[%clk 0:00:18]} 36. Rxg7 {[%clk 0:00:03]}  Kb8 {[%clk 0:00:17]} 37. Re7 {[%clk 0:00:03]}  Rh8 {[%clk 0:00:13]} 38. Rxe3 {[%clk 0:00:03]}  Kc8 {[%clk 0:00:12]} 39. Re7 {[%clk 0:00:02]}  Kd8 {[%clk 0:00:12]} 40. Ra7 {[%clk 0:00:02]}  Rh6 {[%clk 0:00:11]} 41. Ra8+ {[%clk 0:00:01]}  Ke7 {[%clk 0:00:10]} 42. Ra7+ {[%clk 0:00:01]}  Kf8 {[%clk 0:00:10]} 43. Rg4 {[%clk 0:00:02]}  Rg6 {[%clk 0:00:10]} 44. Rxh4 {[%clk 0:00:02]}  Rf1 {[%clk 0:00:10]} 45. Rg4 {[%clk 0:00:02]}  Rxg4 {[%clk 0:00:08]} 46. hxg4 {[%clk 0:00:03]}  Rf4 {[%clk 0:00:09]} 47. Rxa6 {[%clk 0:00:02]}  Be1 {[%clk 0:00:09]} 48. Ne2 {[%clk 0:00:02]}  Rxg4 {[%clk 0:00:08]} 49. Ra4 {[%clk 0:00:02]}  Bf2 {[%clk 0:00:06]} 50. Kh2 {[%clk 0:00:02]}  Rg6 {[%clk 0:00:06]} 51. Nc1 {[%clk 0:00:01]}  Rd6 {[%clk 0:00:05]} 52. Kg2 {[%clk 0:00:01]}  Be3 {[%clk 0:00:05]} 53. Nb3 {[%clk 0:00:02]}  Rd3 {[%clk 0:00:05]} 54. Na5 {[%clk 0:00:02]}  Bc1 {[%clk 0:00:05]} 55. Nc6 {[%clk 0:00:02]}  Bxa3 {[%clk 0:00:05]} 56. Ra8+ {[%clk 0:00:02]}  Kg7 {[%clk 0:00:04]} 57. Ra7 {[%clk 0:00:02]}  Rd2+ {[%clk 0:00:04]} 58. Kf3 {[%clk 0:00:02]}  Bb2 {[%clk 0:00:04]} 59. Ke4 {[%clk 0:00:02]}  Rc2 {[%clk 0:00:04]} 60. Kd5 {[%clk 0:00:02]}  Rd2+ {[%clk 0:00:04]} 61. Kxc5 {[%clk 0:00:02]}  Kg6 {[%clk 0:00:04]} 62. Kb5 {[%clk 0:00:03]}  f5 {[%clk 0:00:04]} 63. Ne7+ {[%clk 0:00:03]}  Kf6 {[%clk 0:00:04]} 64. Nd5+ {[%clk 0:00:02]}  Ke5 {[%clk 0:00:05]} 65. Nb4 {[%clk 0:00:02]}  f4 {[%clk 0:00:04]} 66. Re7+ {[%clk 0:00:02]}  Kf5 {[%clk 0:00:05]} 67. Rf7+ {[%clk 0:00:01]}  Kg4 {[%clk 0:00:05]} 68. c5 {[%clk 0:00:01]}  f3 {[%clk 0:00:05]} 69. c6 {[%clk 0:00:02]}  Be5 {[%clk 0:00:05]} 70. Re7 {[%clk 0:00:01]}  Bf4 {[%clk 0:00:05]} 0-1


[Site "https://www.chess.com"]